[Event "Titled Tuesday Blitz February 22 Early 2022"]
[White "Serikbay, Assel"]
[Black "Tuleyeva-Aketayeva, Dana"]
[WhiteFideId "13706799"]
[BlackFideId "13701932"]
[WhiteElo "2130"]
[BlackElo "1944"]
[Result "1-0"]
[Round "05"]
[TimeControl "180+1"]
[Date "2022.02.22"]
[WhiteClock "0:00:20"]
[BlackClock "0:00:15"]

1. d4 {[%clk 0:03:00]}  Nf6 {[%clk 0:02:57]} 2. c4 {[%clk 0:03:00]}  e6 {[%clk 0:02:56]} 3. g3 {[%clk 0:02:59]}  c5 {[%clk 0:02:55]} 4. d5 {[%clk 0:02:58]}  exd5 {[%clk 0:02:56]} 5. cxd5 {[%clk 0:02:57]}  d6 {[%clk 0:02:57]} 6. Nc3 {[%clk 0:02:56]}  g6 {[%clk 0:02:57]} 7. Bg2 {[%clk 0:02:55]}  Bg7 {[%clk 0:02:57]} 8. Nf3 {[%clk 0:02:52]}  O-O {[%clk 0:02:56]} 9. O-O {[%clk 0:02:51]}  a6 {[%clk 0:02:56]} 10. a4 {[%clk 0:02:49]}  Nbd7 {[%clk 0:02:55]} 11. e4 {[%clk 0:02:31]}  Re8 {[%clk 0:02:54]} 12. Qc2 {[%clk 0:02:26]}  b6 {[%clk 0:02:44]} 13. Re1 {[%clk 0:02:05]}  Nh5 {[%clk 0:02:36]} 14. g4 {[%clk 0:01:57]}  Nhf6 {[%clk 0:02:33]} 15. h3 {[%clk 0:01:56]}  h5 {[%clk 0:02:28]} 16. g5 {[%clk 0:01:49]}  Nh7 {[%clk 0:02:27]} 17. Bf4 {[%clk 0:01:47]}  Ne5 {[%clk 0:02:25]} 18. Bxe5 {[%clk 0:01:36]}  Bxe5 {[%clk 0:02:17]} 19. Nxe5 {[%clk 0:01:24]}  Rxe5 {[%clk 0:02:15]} 20. f4 {[%clk 0:01:23]}  Re8 {[%clk 0:02:12]} 21. Qf2 {[%clk 0:01:20]}  Ra7 {[%clk 0:01:49]} 22. Re3 {[%clk 0:01:17]}  Rae7 {[%clk 0:01:45]} 23. Rae1 {[%clk 0:01:16]}  Bd7 {[%clk 0:01:33]} 24. b3 {[%clk 0:01:06]}  b5 {[%clk 0:01:32]} 25. e5 {[%clk 0:01:04]}  Bf5 {[%clk 0:00:53]} 26. axb5 {[%clk 0:01:00]}  axb5 {[%clk 0:00:51]} 27. Nxb5 {[%clk 0:00:59]}  dxe5 {[%clk 0:00:52]} 28. fxe5 {[%clk 0:01:00]}  Qd7 {[%clk 0:00:29]} 29. Nd6 {[%clk 0:00:55]}  Rb8 {[%clk 0:00:27]} 30. Nxf7 {[%clk 0:00:41]}  Rxf7 {[%clk 0:00:20]} 31. e6 {[%clk 0:00:41]}  Bxe6 {[%clk 0:00:20]} 32. dxe6 {[%clk 0:00:41]}  Rxf2 {[%clk 0:00:19]} 33. exd7 {[%clk 0:00:39]}  Rff8 {[%clk 0:00:19]} 34. Bd5+ {[%clk 0:00:36]}  Kh8 {[%clk 0:00:19]} 35. Re8 {[%clk 0:00:25]}  Rd8 {[%clk 0:00:15]} 36. Rxd8 {[%clk 0:00:19]}  Rxd8 {[%clk 0:00:14]} 37. Re8+ {[%clk 0:00:20]}  Nf8 {[%clk 0:00:15]} 38. Rxd8 {[%clk 0:00:20]} 1-0


[Site "https://www.chess.com"]

[Event "Titled Tuesday Blitz February 22 Early 2022"]
[White "Shton, Roman"]
[Black "Clawitter, Craig"]
[WhiteFideId "14137461"]
[BlackFideId "2023105"]
[WhiteElo "2038"]
[BlackElo "2215"]
[Result "0-1"]
[Round "05"]
[TimeControl "180+1"]
[Date "2022.02.22"]
[WhiteClock "0:01:47"]
[BlackClock "0:00:14"]

1. d4 {[%clk 0:03:00]}  e6 {[%clk 0:01:46]} 2. Nf3 {[%clk 0:02:57]}  Nf6 {[%clk 0:01:46]} 3. g3 {[%clk 0:02:57]}  d5 {[%clk 0:01:45]} 4. Bg2 {[%clk 0:02:58]}  Be7 {[%clk 0:01:46]} 5. Kf1 {[%clk 0:02:59]}  O-O {[%clk 0:01:46]} 6. b3 {[%clk 0:02:58]}  c5 {[%clk 0:01:46]} 7. Bb2 {[%clk 0:02:58]}  Nc6 {[%clk 0:01:46]} 8. e3 {[%clk 0:02:57]}  b6 {[%clk 0:01:39]} 9. h3 {[%clk 0:02:56]}  Bb7 {[%clk 0:01:34]} 10. Kg1 {[%clk 0:02:56]}  Rc8 {[%clk 0:01:33]} 11. a3 {[%clk 0:02:55]}  Ne4 {[%clk 0:01:31]} 12. Kh2 {[%clk 0:02:54]}  Nxf2 {[%clk 0:01:30]} 13. Qe2 {[%clk 0:02:48]}  Nxh1 {[%clk 0:01:28]} 14. Bxh1 {[%clk 0:02:49]}  Bf6 {[%clk 0:01:20]} 15. Nbd2 {[%clk 0:02:43]}  Re8 {[%clk 0:01:20]} 16. Ne5 {[%clk 0:02:28]}  cxd4 {[%clk 0:01:09]} 17. exd4 {[%clk 0:02:26]}  Nxe5 {[%clk 0:00:56]} 18. dxe5 {[%clk 0:02:26]}  Rxc2 {[%clk 0:00:56]} 19. exf6 {[%clk 0:02:20]}  Rxb2 {[%clk 0:00:54]} 20. fxg7 {[%clk 0:02:21]}  Qg5 {[%clk 0:00:46]} 21. Rd1 {[%clk 0:02:18]}  Rc8 {[%clk 0:00:43]} 22. h4 {[%clk 0:02:16]}  Qh6 {[%clk 0:00:32]} 23. Qe5 {[%clk 0:02:08]}  Rxd2+ {[%clk 0:00:28]} 24. Rxd2 {[%clk 0:02:08]}  Qxd2+ {[%clk 0:00:28]} 25. Kh3 {[%clk 0:02:09]}  Qh6 {[%clk 0:00:19]} 26. g4 {[%clk 0:02:05]}  Qxg7 {[%clk 0:00:19]} 27. Qd6 {[%clk 0:02:01]}  Rc3+ {[%clk 0:00:18]} 28. Kh2 {[%clk 0:02:01]}  Rc2+ {[%clk 0:00:16]} 29. Kh3 {[%clk 0:02:01]}  Qc3+ {[%clk 0:00:15]} 30. Qg3 {[%clk 0:02:00]}  Qxg3+ {[%clk 0:00:15]} 31. Kxg3 {[%clk 0:02:00]}  Rc3+ {[%clk 0:00:16]} 32. Kf4 {[%clk 0:02:01]}  Rxb3 {[%clk 0:00:17]} 33. Kg5 {[%clk 0:02:02]}  Rxa3 {[%clk 0:00:17]} 34. h5 {[%clk 0:02:02]}  Rg3 {[%clk 0:00:17]} 35. h6 {[%clk 0:02:03]}  Bc8 {[%clk 0:00:16]} 36. Kf6 {[%clk 0:02:01]}  e5 {[%clk 0:00:16]} 37. g5 {[%clk 0:02:01]}  Rh3 {[%clk 0:00:16]} 38. Bxd5 {[%clk 0:02:00]}  Be6 {[%clk 0:00:15]} 39. Be4 {[%clk 0:01:58]}  Rg3 {[%clk 0:00:14]} 40. Bb1 {[%clk 0:01:53]}  a5 {[%clk 0:00:14]} 41. g6 {[%clk 0:01:50]}  hxg6 {[%clk 0:00:14]} 42. Bf5 {[%clk 0:01:47]}  Bxf5 {[%clk 0:00:13]} 43. Kxe5 {[%clk 0:01:47]}  a4 {[%clk 0:00:14]} 0-1


[Site "https://www.chess.com"]

[Event "Titled Tuesday Blitz February 22 Early 2022"]
[White "Shuvalova, Polina"]
[Black "Kostiukov, Alexandr"]
[WhiteFideId "24171760"]
[BlackFideId "14108100"]
[WhiteElo "2355"]
[BlackElo "2202"]
[Result "1-0"]
[Round "05"]
[TimeControl "180+1"]
[Date "2022.02.22"]
[WhiteClock "0:00:12"]
[BlackClock "0:00:03"]

1. e4 {[%clk 0:01:43]}  c5 {[%clk 0:02:59]} 2. Nf3 {[%clk 0:01:41]}  g6 {[%clk 0:02:59]} 3. c3 {[%clk 0:01:40]}  Bg7 {[%clk 0:02:58]} 4. d4 {[%clk 0:01:41]}  cxd4 {[%clk 0:02:59]} 5. cxd4 {[%clk 0:01:42]}  d5 {[%clk 0:02:59]} 6. e5 {[%clk 0:01:42]}  Nh6 {[%clk 0:02:58]} 7. h3 {[%clk 0:01:42]}  O-O {[%clk 0:02:58]} 8. Nc3 {[%clk 0:01:41]}  Nc6 {[%clk 0:02:51]} 9. Bb5 {[%clk 0:01:41]}  f6 {[%clk 0:02:52]} 10. O-O {[%clk 0:01:37]}  Nf5 {[%clk 0:02:40]} 11. Re1 {[%clk 0:01:35]}  fxe5 {[%clk 0:02:33]} 12. Bxc6 {[%clk 0:01:33]}  bxc6 {[%clk 0:02:26]} 13. Nxe5 {[%clk 0:01:32]}  Qb6 {[%clk 0:01:59]} 14. Be3 {[%clk 0:00:36]}  Bxe5 {[%clk 0:01:56]} 15. dxe5 {[%clk 0:00:34]}  d4 {[%clk 0:01:57]} 16. Na4 {[%clk 0:00:31]}  Qb5 {[%clk 0:01:43]} 17. Bg5 {[%clk 0:00:29]}  h6 {[%clk 0:01:33]} 18. Bd2 {[%clk 0:00:28]}  g5 {[%clk 0:01:27]} 19. Rc1 {[%clk 0:00:28]}  Be6 {[%clk 0:01:22]} 20. b3 {[%clk 0:00:28]}  Bd5 {[%clk 0:01:19]} 21. Nc5 {[%clk 0:00:24]}  Rad8 {[%clk 0:01:11]} 22. Qe2 {[%clk 0:00:20]}  Qxe2 {[%clk 0:00:55]} 23. Rxe2 {[%clk 0:00:20]}  e6 {[%clk 0:00:51]} 24. f3 {[%clk 0:00:20]}  Rf7 {[%clk 0:00:42]} 25. Nd3 {[%clk 0:00:19]}  Rb7 {[%clk 0:00:24]} 26. Be1 {[%clk 0:00:18]}  Kf7 {[%clk 0:00:17]} 27. Bf2 {[%clk 0:00:18]}  a5 {[%clk 0:00:16]} 28. Nc5 {[%clk 0:00:17]}  Rb5 {[%clk 0:00:15]} 29. Rec2 {[%clk 0:00:17]}  h5 {[%clk 0:00:07]} 30. Nd3 {[%clk 0:00:14]}  h4 {[%clk 0:00:05]} 31. Kf1 {[%clk 0:00:13]}  Rdb8 {[%clk 0:00:04]} 32. Ke2 {[%clk 0:00:13]}  Ke7 {[%clk 0:00:03]} 33. Nc5 {[%clk 0:00:12]} 1-0


[Site "https://www.chess.com"]

[Event "Titled Tuesday Blitz February 22 Early 2022"]
[White "Siva Mahadevan"]
[Black "Safarli, Eltaj"]
[WhiteFideId "25043153"]
[BlackFideId "13402129"]
[WhiteElo "2203"]
[BlackElo "2634"]
[Result "0-1"]
[Round "05"]
[TimeControl "180+1"]
[Date "2022.02.22"]
[WhiteClock "0:00:24"]
[BlackClock "0:01:18"]

1. e4 {[%clk 0:02:59]}  c5 {[%clk 0:02:58]} 2. Nf3 {[%clk 0:03:00]}  Nf6 {[%clk 0:02:59]} 3. Nc3 {[%clk 0:03:00]}  d5 {[%clk 0:02:59]} 4. exd5 {[%clk 0:03:00]}  Nxd5 {[%clk 0:03:00]} 5. Bc4 {[%clk 0:02:59]}  Nb6 {[%clk 0:02:58]} 6. Bb5+ {[%clk 0:02:59]}  Bd7 {[%clk 0:02:58]} 7. Bxd7+ {[%clk 0:02:55]}  Qxd7 {[%clk 0:02:53]} 8. d4 {[%clk 0:02:53]}  e6 {[%clk 0:02:49]} 9. Bf4 {[%clk 0:02:39]}  cxd4 {[%clk 0:02:31]} 10. Qxd4 {[%clk 0:02:04]}  Qxd4 {[%clk 0:02:26]} 11. Nxd4 {[%clk 0:02:05]}  a6 {[%clk 0:02:26]} 12. O-O-O {[%clk 0:02:04]}  N8d7 {[%clk 0:02:19]} 13. Nf3 {[%clk 0:01:39]}  f6 {[%clk 0:02:12]} 14. Rhe1 {[%clk 0:01:34]}  e5 {[%clk 0:02:12]} 15. Bg3 {[%clk 0:01:22]}  Bb4 {[%clk 0:02:10]} 16. Re3 {[%clk 0:01:10]}  O-O-O {[%clk 0:01:53]} 17. Nd5 {[%clk 0:00:59]}  Nxd5 {[%clk 0:01:49]} 18. Rxd5 {[%clk 0:00:59]}  Nb6 {[%clk 0:01:44]} 19. Rxd8+ {[%clk 0:00:53]}  Rxd8 {[%clk 0:01:45]} 20. a3 {[%clk 0:00:51]}  Bc5 {[%clk 0:01:41]} 21. Rc3 {[%clk 0:00:45]}  Na4 {[%clk 0:01:41]} 22. Rc4 {[%clk 0:00:36]}  Rd1+ {[%clk 0:01:40]} 23. Kxd1 {[%clk 0:00:32]}  Nxb2+ {[%clk 0:01:41]} 24. Kc1 {[%clk 0:00:32]}  Nxc4 {[%clk 0:01:41]} 25. a4 {[%clk 0:00:33]}  Kd7 {[%clk 0:01:40]} 26. h4 {[%clk 0:00:29]}  h5 {[%clk 0:01:39]} 27. Ne1 {[%clk 0:00:28]}  Ba3+ {[%clk 0:01:32]} 28. Kb1 {[%clk 0:00:26]}  e4 {[%clk 0:01:32]} 29. Ka2 {[%clk 0:00:25]}  Bb4 {[%clk 0:01:30]} 30. f3 {[%clk 0:00:25]}  Bxe1 {[%clk 0:01:28]} 31. Bxe1 {[%clk 0:00:25]}  exf3 {[%clk 0:01:26]} 32. gxf3 {[%clk 0:00:26]}  Ne5 {[%clk 0:01:27]} 33. f4 {[%clk 0:00:24]}  Nf3 {[%clk 0:01:27]} 34. Bf2 {[%clk 0:00:24]}  g5 {[%clk 0:01:16]} 35. fxg5 {[%clk 0:00:24]}  fxg5 {[%clk 0:01:17]} 36. hxg5 {[%clk 0:00:25]}  Nxg5 {[%clk 0:01:18]} 37. Kb3 {[%clk 0:00:26]}  Nf3 {[%clk 0:01:18]} 38. Kc4 {[%clk 0:00:23]}  h4 {[%clk 0:01:19]} 39. Kd3 {[%clk 0:00:24]}  h3 {[%clk 0:01:18]} 0-1


[Site "https://www.chess.com"]

[Event "Titled Tuesday Blitz February 22 Early 2022"]
[White "Slugin, Sergey"]
[Black "Dronavalli, Harika"]
[WhiteFideId "4122569"]
[BlackFideId "5015197"]
[WhiteElo "2358"]
[BlackElo "2382"]
[Result "0-1"]
[Round "05"]
[TimeControl "180+1"]
[Date "2022.02.22"]
[WhiteClock "0:00:07"]
[BlackClock "0:00:57"]

1. e4 {[%clk 0:02:53]}  c5 {[%clk 0:02:57]} 2. Nf3 {[%clk 0:02:53]}  Nc6 {[%clk 0:02:56]} 3. d4 {[%clk 0:02:54]}  cxd4 {[%clk 0:02:56]} 4. Nxd4 {[%clk 0:02:54]}  Nf6 {[%clk 0:02:56]} 5. Nc3 {[%clk 0:02:55]}  e5 {[%clk 0:02:55]} 6. Ndb5 {[%clk 0:02:56]}  d6 {[%clk 0:02:53]} 7. Bg5 {[%clk 0:02:56]}  a6 {[%clk 0:02:51]} 8. Na3 {[%clk 0:02:57]}  b5 {[%clk 0:02:51]} 9. Nd5 {[%clk 0:02:58]}  Be7 {[%clk 0:02:50]} 10. Bxf6 {[%clk 0:02:58]}  Bxf6 {[%clk 0:02:49]} 11. c4 {[%clk 0:02:59]}  b4 {[%clk 0:02:49]} 12. Nc2 {[%clk 0:02:59]}  O-O {[%clk 0:02:49]} 13. h4 {[%clk 0:02:59]}  a5 {[%clk 0:02:47]} 14. g3 {[%clk 0:02:57]}  Be6 {[%clk 0:02:46]} 15. Bh3 {[%clk 0:02:57]}  Rc8 {[%clk 0:02:28]} 16. b3 {[%clk 0:02:53]}  Rb8 {[%clk 0:02:10]} 17. Nxf6+ {[%clk 0:02:29]}  Qxf6 {[%clk 0:02:01]} 18. Qxd6 {[%clk 0:02:28]}  Qf3 {[%clk 0:01:58]} 19. Bxe6 {[%clk 0:01:45]}  Qxh1+ {[%clk 0:01:53]} 20. Kd2 {[%clk 0:01:46]}  Rbd8 {[%clk 0:01:48]} 21. Rxh1 {[%clk 0:01:28]}  Rxd6+ {[%clk 0:01:47]} 22. Bd5 {[%clk 0:01:26]}  Ne7 {[%clk 0:01:40]} 23. g4 {[%clk 0:01:23]}  g6 {[%clk 0:01:39]} 24. Ne3 {[%clk 0:01:18]}  Kg7 {[%clk 0:01:38]} 25. c5 {[%clk 0:01:09]}  Rd7 {[%clk 0:01:36]} 26. Ke2 {[%clk 0:00:49]}  Rc8 {[%clk 0:01:34]} 27. Rc1 {[%clk 0:00:45]}  Rdc7 {[%clk 0:01:34]} 28. c6 {[%clk 0:00:32]}  Nxc6 {[%clk 0:01:34]} 29. Bxc6 {[%clk 0:00:30]}  Rxc6 {[%clk 0:01:35]} 30. Nc4 {[%clk 0:00:31]}  a4 {[%clk 0:01:31]} 31. Rd1 {[%clk 0:00:30]}  axb3 {[%clk 0:01:26]} 32. axb3 {[%clk 0:00:31]}  Rxc4 {[%clk 0:01:21]} 33. bxc4 {[%clk 0:00:31]}  Rxc4 {[%clk 0:01:22]} 34. f3 {[%clk 0:00:28]}  b3 {[%clk 0:01:19]} 35. Rb1 {[%clk 0:00:27]}  Rc3 {[%clk 0:01:19]} 36. Kf2 {[%clk 0:00:09]}  Kf6 {[%clk 0:01:18]} 37. Ke2 {[%clk 0:00:09]}  Ke7 {[%clk 0:01:17]} 38. Rb2 {[%clk 0:00:06]}  Kd6 {[%clk 0:01:16]} 39. Rd2+ {[%clk 0:00:06]}  Kc5 {[%clk 0:01:16]} 40. Rd8 {[%clk 0:00:06]}  Rc4 {[%clk 0:01:08]} 41. Rc8+ {[%clk 0:00:02]}  Kd4 {[%clk 0:01:08]} 42. Rb8 {[%clk 0:00:02]}  Kc3 {[%clk 0:01:08]} 43. Kd1 {[%clk 0:00:02]}  b2 {[%clk 0:01:07]} 44. g5 {[%clk 0:00:01]}  Ra4 {[%clk 0:01:04]} 45. Rc8+ {[%clk 0:00:01]}  Kb3 {[%clk 0:01:01]} 46. Rb8+ {[%clk 0:00:02]}  Rb4 {[%clk 0:01:01]} 47. Rxb4+ {[%clk 0:00:01]}  Kxb4 {[%clk 0:01:02]} 48. Kc2 {[%clk 0:00:02]}  Ka3 {[%clk 0:01:02]} 49. Kb1 {[%clk 0:00:03]}  Kb3 {[%clk 0:01:01]} 50. h5 {[%clk 0:00:03]}  gxh5 {[%clk 0:00:59]} 51. f4 {[%clk 0:00:04]}  exf4 {[%clk 0:00:59]} 52. e5 {[%clk 0:00:05]}  Kc4 {[%clk 0:00:59]} 53. e6 {[%clk 0:00:05]}  fxe6 {[%clk 0:00:58]} 54. g6 {[%clk 0:00:06]}  hxg6 {[%clk 0:00:58]} 55. Kxb2 {[%clk 0:00:07]}  Kd3 {[%clk 0:00:57]} 0-1


[Site "https://www.chess.com"]

[Event "Titled Tuesday Blitz February 22 Early 2022"]
[White "Stefanov, Plamen"]
[Black "Sviridova, Vlada"]
[WhiteFideId "2900980"]
[BlackFideId "24109606"]
[WhiteElo "2137"]
[BlackElo "2101"]
[Result "1/2-1/2"]
[Round "05"]
[TimeControl "180+1"]
[Date "2022.02.22"]
[WhiteClock "0:00:14"]
[BlackClock "0:00:08"]

1. e4 {[%clk 0:03:00]}  e6 {[%clk 0:02:59]} 2. d4 {[%clk 0:03:00]}  d5 {[%clk 0:03:00]} 3. Nc3 {[%clk 0:03:00]}  Bb4 {[%clk 0:02:59]} 4. e5 {[%clk 0:03:00]}  c5 {[%clk 0:03:00]} 5. a3 {[%clk 0:03:00]}  Bxc3+ {[%clk 0:03:00]} 6. bxc3 {[%clk 0:03:01]}  Ne7 {[%clk 0:03:01]} 7. Qg4 {[%clk 0:02:58]}  O-O {[%clk 0:03:00]} 8. Bd3 {[%clk 0:02:56]}  Nbc6 {[%clk 0:03:00]} 9. Nf3 {[%clk 0:02:55]}  f5 {[%clk 0:02:59]} 10. exf6 {[%clk 0:02:54]}  Rxf6 {[%clk 0:02:59]} 11. h4 {[%clk 0:02:50]}  e5 {[%clk 0:02:32]} 12. Bxh7+ {[%clk 0:02:39]}  Kxh7 {[%clk 0:02:14]} 13. Qh5+ {[%clk 0:02:39]}  Kg8 {[%clk 0:02:10]} 14. dxe5 {[%clk 0:02:39]}  Re6 {[%clk 0:01:47]} 15. Ng5 {[%clk 0:02:39]}  Rxe5+ {[%clk 0:01:47]} 16. Be3 {[%clk 0:02:26]}  Rxg5 {[%clk 0:01:10]} 17. hxg5 {[%clk 0:02:25]}  Bf5 {[%clk 0:01:09]} 18. O-O-O {[%clk 0:01:50]}  Bg6 {[%clk 0:00:44]} 19. Qh8+ {[%clk 0:01:40]}  Kf7 {[%clk 0:00:44]} 20. Qxd8 {[%clk 0:01:17]}  Rxd8 {[%clk 0:00:43]} 21. Bxc5 {[%clk 0:01:18]}  b6 {[%clk 0:00:44]} 22. Bd4 {[%clk 0:01:15]}  Nf5 {[%clk 0:00:40]} 23. Rhe1 {[%clk 0:01:10]}  Rc8 {[%clk 0:00:32]} 24. Kb2 {[%clk 0:01:08]}  Ncxd4 {[%clk 0:00:30]} 25. cxd4 {[%clk 0:01:07]}  Nd6 {[%clk 0:00:30]} 26. c3 {[%clk 0:01:01]}  Nc4+ {[%clk 0:00:28]} 27. Kb3 {[%clk 0:00:59]}  a5 {[%clk 0:00:26]} 28. a4 {[%clk 0:00:57]}  Nd6 {[%clk 0:00:23]} 29. f3 {[%clk 0:00:57]}  b5 {[%clk 0:00:15]} 30. Rc1 {[%clk 0:00:54]}  bxa4+ {[%clk 0:00:14]} 31. Kxa4 {[%clk 0:00:54]}  Nc4 {[%clk 0:00:14]} 32. g4 {[%clk 0:00:44]}  Rb8 {[%clk 0:00:13]} 33. f4 {[%clk 0:00:41]}  Bd3 {[%clk 0:00:12]} 34. f5 {[%clk 0:00:32]}  Nb2+ {[%clk 0:00:11]} 35. Ka3 {[%clk 0:00:32]}  Nc4+ {[%clk 0:00:11]} 36. Ka4 {[%clk 0:00:28]}  Rb2 {[%clk 0:00:11]} 37. Red1 {[%clk 0:00:18]}  Bc2+ {[%clk 0:00:10]} 38. Rxc2 {[%clk 0:00:18]}  Rxc2 {[%clk 0:00:11]} 39. g6+ {[%clk 0:00:18]}  Kf6 {[%clk 0:00:10]} 40. Rf1 {[%clk 0:00:15]}  Rb2 {[%clk 0:00:10]} 41. g5+ {[%clk 0:00:14]}  Kxg5 {[%clk 0:00:10]} 42. f6 {[%clk 0:00:14]}  Kxg6 {[%clk 0:00:08]} 43. f7 {[%clk 0:00:14]}  Nb6+ {[%clk 0:00:08]} 44. Kxa5 {[%clk 0:00:14]}  Nd7 {[%clk 0:00:08]} 45. f8=Q {[%clk 0:00:14]}  Nxf8 {[%clk 0:00:09]} 46. Rxf8 {[%clk 0:00:14]}  Rc2 {[%clk 0:00:09]} 47. Rc8 {[%clk 0:00:14]}  Kg5 {[%clk 0:00:09]} 48. Rc5 {[%clk 0:00:14]}  Kf4 {[%clk 0:00:08]} 49. Rxd5 {[%clk 0:00:15]}  Rxc3 {[%clk 0:00:08]} 50. Rd7 {[%clk 0:00:15]}  g5 {[%clk 0:00:08]} 51. Rf7+ {[%clk 0:00:14]}  Kg3 {[%clk 0:00:08]} 52. Rg7 {[%clk 0:00:14]}  g4 {[%clk 0:00:08]} 53. Kb4 {[%clk 0:00:14]}  Rd3 {[%clk 0:00:08]} 54. Kc5 {[%clk 0:00:14]}  Kf4 {[%clk 0:00:08]} 55. d5 {[%clk 0:00:14]}  g3 {[%clk 0:00:08]} 56. d6 {[%clk 0:00:13]}  Kf3 {[%clk 0:00:08]} 57. Kc6 {[%clk 0:00:13]}  Kf2 {[%clk 0:00:08]} 58. d7 {[%clk 0:00:13]}  g2 {[%clk 0:00:08]} 59. Rxg2+ {[%clk 0:00:12]}  Kxg2 {[%clk 0:00:08]} 60. Kc7 {[%clk 0:00:13]}  Kf3 {[%clk 0:00:08]} 61. d8=Q {[%clk 0:00:14]}  Rxd8 {[%clk 0:00:08]} 62. Kxd8 {[%clk 0:00:14]} 1/2-1/2


[Site "https://www.chess.com"]

[Event "Titled Tuesday Blitz February 22 Early 2022"]
[White "Steil-Antoni, Fiona"]
[Black "Berezin, Viktor"]
[WhiteFideId "4001249"]
[BlackFideId "14107872"]
[WhiteElo "2059"]
[BlackElo "2310"]
[Result "0-1"]
[Round "05"]
[TimeControl "180+1"]
[Date "2022.02.22"]
[WhiteClock "0:00:02"]
[BlackClock "0:00:10"]

1. e4 {[%clk 0:02:59]}  d5 {[%clk 0:02:57]} 2. exd5 {[%clk 0:02:55]}  Nf6 {[%clk 0:02:55]} 3. d4 {[%clk 0:02:50]}  Bg4 {[%clk 0:02:53]} 4. Be2 {[%clk 0:02:49]}  Bxe2 {[%clk 0:02:45]} 5. Nxe2 {[%clk 0:02:50]}  Qxd5 {[%clk 0:02:43]} 6. O-O {[%clk 0:02:46]}  e6 {[%clk 0:02:41]} 7. b3 {[%clk 0:02:36]}  c5 {[%clk 0:02:35]} 8. c4 {[%clk 0:02:35]}  Qh5 {[%clk 0:02:33]} 9. Ba3 {[%clk 0:02:21]}  Nc6 {[%clk 0:02:21]} 10. dxc5 {[%clk 0:01:52]}  Rd8 {[%clk 0:02:12]} 11. Qc2 {[%clk 0:01:43]}  Bxc5 {[%clk 0:01:54]} 12. Ng3 {[%clk 0:01:40]}  Qe5 {[%clk 0:01:43]} 13. Bxc5 {[%clk 0:01:30]}  Qxc5 {[%clk 0:01:41]} 14. Nc3 {[%clk 0:01:28]}  Nb4 {[%clk 0:01:38]} 15. Qe2 {[%clk 0:01:22]}  O-O {[%clk 0:01:37]} 16. h3 {[%clk 0:01:16]}  Nc6 {[%clk 0:01:36]} 17. Rad1 {[%clk 0:01:07]}  Nd4 {[%clk 0:01:34]} 18. Qe3 {[%clk 0:01:04]}  e5 {[%clk 0:01:32]} 19. Nge4 {[%clk 0:00:59]}  Nxe4 {[%clk 0:01:30]} 20. Nxe4 {[%clk 0:01:00]}  Qe7 {[%clk 0:01:30]} 21. Nc3 {[%clk 0:00:52]}  Rfe8 {[%clk 0:01:14]} 22. Nd5 {[%clk 0:00:52]}  Qc5 {[%clk 0:01:06]} 23. Rd2 {[%clk 0:00:46]}  b6 {[%clk 0:01:06]} 24. Re1 {[%clk 0:00:39]}  f6 {[%clk 0:01:05]} 25. Qe4 {[%clk 0:00:28]}  Ne6 {[%clk 0:00:46]} 26. Red1 {[%clk 0:00:23]}  Kh8 {[%clk 0:00:42]} 27. h4 {[%clk 0:00:18]}  Rf8 {[%clk 0:00:31]} 28. Rd3 {[%clk 0:00:16]}  Rde8 {[%clk 0:00:25]} 29. Qg4 {[%clk 0:00:14]}  f5 {[%clk 0:00:20]} 30. Qg3 {[%clk 0:00:07]}  e4 {[%clk 0:00:18]} 31. R3d2 {[%clk 0:00:05]}  f4 {[%clk 0:00:17]} 32. Qg4 {[%clk 0:00:06]}  e3 {[%clk 0:00:18]} 33. fxe3 {[%clk 0:00:04]}  fxe3 {[%clk 0:00:18]} 34. Re2 {[%clk 0:00:04]}  Nc7 {[%clk 0:00:17]} 35. Nxc7 {[%clk 0:00:02]}  Qxc7 {[%clk 0:00:18]} 36. Rde1 {[%clk 0:00:03]}  Qc5 {[%clk 0:00:17]} 37. Qg3 {[%clk 0:00:03]}  Rf2 {[%clk 0:00:14]} 38. Kh2 {[%clk 0:00:03]}  Rxe2 {[%clk 0:00:14]} 39. Rxe2 {[%clk 0:00:04]}  h6 {[%clk 0:00:14]} 40. Qf3 {[%clk 0:00:04]}  Qe5+ {[%clk 0:00:13]} 41. Qg3 {[%clk 0:00:04]}  Qd4 {[%clk 0:00:12]} 42. Qf3 {[%clk 0:00:04]}  Qd3 {[%clk 0:00:12]} 43. g3 {[%clk 0:00:04]}  Qd4 {[%clk 0:00:10]} 44. Kg2 {[%clk 0:00:05]}  a6 {[%clk 0:00:11]} 45. Qf4 {[%clk 0:00:05]}  Qd3 {[%clk 0:00:10]} 46. Qf3 {[%clk 0:00:05]}  b5 {[%clk 0:00:10]} 47. cxb5 {[%clk 0:00:05]}  axb5 {[%clk 0:00:11]} 48. h5 {[%clk 0:00:05]}  b4 {[%clk 0:00:11]} 49. Qg4 {[%clk 0:00:05]}  Qd5+ {[%clk 0:00:07]} 50. Qf3 {[%clk 0:00:05]}  Qd4 {[%clk 0:00:06]} 51. Qf4 {[%clk 0:00:06]}  Qd3 {[%clk 0:00:06]} 52. Qf3 {[%clk 0:00:06]}  Qd1 {[%clk 0:00:03]} 53. Qg4 {[%clk 0:00:04]}  Rf8 {[%clk 0:00:01]} 54. Kh3 {[%clk 0:00:03]}  Qf1+ {[%clk 0:00:02]} 55. Kh4 {[%clk 0:00:03]}  Qh1+ {[%clk 0:00:03]} 56. Qh3 {[%clk 0:00:03]}  Qe4+ {[%clk 0:00:03]} 57. Qg4 {[%clk 0:00:03]}  Qe7+ {[%clk 0:00:04]} 58. Kh3 {[%clk 0:00:03]}  Rf1 {[%clk 0:00:05]} 59. Qf4 {[%clk 0:00:02]}  Rxf4 {[%clk 0:00:05]} 60. gxf4 {[%clk 0:00:03]}  Qe4 {[%clk 0:00:05]} 61. Kg3 {[%clk 0:00:04]}  Qd3 {[%clk 0:00:05]} 62. Kf3 {[%clk 0:00:04]}  Qd5+ {[%clk 0:00:06]} 63. Kg3 {[%clk 0:00:04]}  Qxh5 {[%clk 0:00:07]} 64. Rxe3 {[%clk 0:00:04]}  Qf7 {[%clk 0:00:08]} 65. Kf3 {[%clk 0:00:04]}  Kh7 {[%clk 0:00:08]} 66. Re4 {[%clk 0:00:05]}  Qf5 {[%clk 0:00:09]} 67. Rxb4 {[%clk 0:00:05]}  h5 {[%clk 0:00:09]} 68. Rc4 {[%clk 0:00:05]}  Qg4+ {[%clk 0:00:10]} 69. Ke4 {[%clk 0:00:05]}  h4 {[%clk 0:00:10]} 70. a4 {[%clk 0:00:05]}  h3 {[%clk 0:00:11]} 71. Rc2 {[%clk 0:00:04]}  Qg3 {[%clk 0:00:10]} 72. a5 {[%clk 0:00:02]}  h2 {[%clk 0:00:10]} 0-1


[Site "https://www.chess.com"]